[Event "Championnat d'Europe de Blitz"]
[Date "2024.12.09"]
[White "Bernadskiy, Vitaliy"]
[Black "Herega, Nejc"]
[WhiteElo "2546"]
[BlackElo "2249"]
[Round "7.23"]
[Result "1-0"]
[TimeControl "180+2"]

1. e4 {[%clk 00:03:03]} d6 {[%emt 00:00:01] [%clk 00:03:03]} 2. Nc3 {[%emt
00:00:02] [%clk 00:03:04]} Nf6 {[%emt 00:00:03]} 3. d4 {[%clk 00:03:04]} e5
{[%emt 00:00:02] [%clk 00:03:03]} 4. Nf3 {[%emt 00:00:02] [%clk 00:03:04]} Nbd7
{[%emt 00:00:01] [%clk 00:03:04]} 5. Bc4 {[%emt 00:00:02] [%clk 00:03:05]} Be7
{[%emt 00:00:01] [%clk 00:03:05]} 6. O-O {[%emt 00:00:02] [%clk 00:03:05]} O-O
{[%emt 00:00:03] [%clk 00:03:04]} 7. a4 {[%emt 00:00:02] [%clk 00:03:05]} c6
{[%emt 00:00:01] [%clk 00:03:05]} 8. Re1 {[%emt 00:00:02] [%clk 00:03:05]} h6
{[%emt 00:00:02] [%clk 00:03:04]} 9. h3 {[%emt 00:00:02] [%clk 00:03:05]} Re8
{[%emt 00:00:06] [%clk 00:03:00]} 10. Bf1 {[%emt 00:00:11] [%clk 00:02:56]} Qc7
{[%emt 00:00:19] [%clk 00:02:44]} 11. b3 {[%emt 00:00:02] [%clk 00:02:55]} Bf8
{[%emt 00:00:11] [%clk 00:02:36]} 12. Bb2 {[%emt 00:00:05] [%clk 00:02:52]} exd4
{[%emt 00:00:04] [%clk 00:02:34]} 13. Nxd4 {[%emt 00:00:05] [%clk 00:02:48]} Nc5
{[%emt 00:00:02] [%clk 00:02:35]} 14. Qf3 {[%emt 00:00:01] [%clk 00:02:48]} Ne6
{[%emt 00:00:12] [%clk 00:02:26]} 15. Nxe6 {[%emt 00:00:32] [%clk 00:02:18]}
Bxe6 {[%emt 00:00:04] [%clk 00:02:25]} 16. Ne2 {[%emt 00:00:04] [%clk 00:02:14]}
Nh7 {[%emt 00:00:26] [%clk 00:02:00]} 17. Nf4 {[%emt 00:00:12] [%clk 00:02:05]}
d5 {[%emt 00:00:34] [%clk 00:01:29]} 18. Nxe6 {[%emt 00:00:54] [%clk 00:01:13]}
fxe6 {[%emt 00:00:09] [%clk 00:01:21]} 19. exd5 {[%emt 00:00:02] [%clk
00:01:13]} cxd5 {[%emt 00:00:19] [%clk 00:01:04]} 20. Bd3 {[%emt 00:00:06] [%clk
00:01:09]} Ng5 {[%emt 00:00:04] [%clk 00:01:02]} 21. Qg4 {[%emt 00:00:05] [%clk
00:01:06]} e5 {[%emt 00:00:28] [%clk 00:00:37]} 22. Bg6 {[%emt 00:00:02] [%clk
00:01:07]} Re6 {[%emt 00:00:06] [%clk 00:00:33]} 23. Bf5 {[%emt 00:00:01] [%clk
00:01:07]} Ree8 {[%emt 00:00:14] [%clk 00:00:21]} 24. h4 {[%emt 00:00:01] [%clk
00:01:07]} Nf7 {[%emt 00:00:07] [%clk 00:00:17]} 25. Qg6 {[%emt 00:00:01] [%clk
00:01:08]} Bb4 {[%emt 00:00:04] [%clk 00:00:15]} 26. Re3 {[%emt 00:00:10] [%clk
00:00:59]} Qd6 {[%emt 00:00:03] [%clk 00:00:15]} 27. Qh7+ {[%emt 00:00:01] [%clk
00:01:00]} Kf8 {[%clk 00:00:16]} 28. Rg3 {[%emt 00:00:08] [%clk 00:00:55]} Qf6
{[%emt 00:00:05] [%clk 00:00:13]} 29. Rf3 {[%emt 00:00:03] [%clk 00:00:54]} Ke7
{[%emt 00:00:08] [%clk 00:00:07]} 30. Bg6 {[%emt 00:00:10] [%clk 00:00:46]} Rh8
{[%emt 00:00:02] [%clk 00:00:07]} 31. Rxf6 {[%emt 00:00:02] [%clk 00:00:46]}
Kxf6 {[%emt 00:00:01] [%clk 00:00:08]} 32. f4 {[%emt 00:00:13] [%clk 00:00:35]}
Rxh7 {[%emt 00:00:02] [%clk 00:00:08]} 33. Bxh7 {[%emt 00:00:02] [%clk
00:00:35]} Bd6 {[%emt 00:00:01] [%clk 00:00:09]} 34. Rf1 {[%emt 00:00:04] [%clk
00:00:33]} Ke7 {[%emt 00:00:03] [%clk 00:00:07]} 35. fxe5 {[%emt 00:00:06] [%clk
00:00:29]} Nxe5 {[%emt 00:00:02] [%clk 00:00:09]} 36. Re1 {[%emt 00:00:10] [%clk
00:00:20]} Ke6 {[%clk 00:00:10]} 37. h5 {[%emt 00:00:09] [%clk 00:00:13]} Rc8
{[%emt 00:00:02] [%clk 00:00:09]} 38. Bd4 {[%emt 00:00:02] [%clk 00:00:13]} b6
{[%emt 00:00:05] [%clk 00:00:07]} 39. g4 {[%emt 00:00:02] [%clk 00:00:12]} Re8
{[%emt 00:00:02] [%clk 00:00:07]} 40. Bg6 {[%emt 00:00:02] [%clk 00:00:12]} Re7
{[%emt 00:00:03] [%clk 00:00:07]} 41. Kg2 {[%clk 00:00:13]} Kd7 {[%emt 00:00:02]
[%clk 00:00:07]} 42. Bf5+ {[%emt 00:00:02] [%clk 00:00:14]} Kc7 {[%emt 00:00:01]
[%clk 00:00:08]} 43. Rd1 {[%clk 00:00:14]} Nc6 {[%emt 00:00:04] [%clk 00:00:07]}
44. Bf2 {[%emt 00:00:01] [%clk 00:00:15]} d4 {[%emt 00:00:02] [%clk 00:00:07]}
45. Bd3 {[%emt 00:00:03] [%clk 00:00:14]} Bf4 {[%emt 00:00:04] [%clk 00:00:05]}
46. Rf1 {[%emt 00:00:02] [%clk 00:00:14]} Be3 {[%emt 00:00:01] [%clk 00:00:06]}
47. Bg3+ {[%emt 00:00:01] [%clk 00:00:15]} Kb7 {[%emt 00:00:02] [%clk 00:00:06]}
48. Rf5 {[%emt 00:00:03] [%clk 00:00:14]} Nb4 {[%emt 00:00:02] [%clk 00:00:06]}
49. Re5 {[%emt 00:00:06] [%clk 00:00:10]} Rf7 {[%emt 00:00:04] [%clk 00:00:04]}
50. Be4+ {[%clk 00:00:11]} Ka6 {[%emt 00:00:01] [%clk 00:00:05]} 51. Be1 {[%emt
00:00:04] [%clk 00:00:09]} Na2 {[%emt 00:00:03] [%clk 00:00:04]} 52. Bd3+ {[%emt
00:00:02] [%clk 00:00:09]} Kb7 {[%emt 00:00:01] [%clk 00:00:05]} 53. Bc4 {[%emt
00:00:02] [%clk 00:00:08]} Rc7 {[%emt 00:00:04] [%clk 00:00:04]} 54. Bd5+ {[%emt
00:00:01] [%clk 00:00:09]} Ka6 {[%clk 00:00:05]} 55. Bc4+ {[%clk 00:00:10]} Kb7
{[%clk 00:00:07]} 56. Re6 {[%emt 00:00:02] [%clk 00:00:10]} Rd7 {[%emt 00:00:03]
[%clk 00:00:06]} 57. a5 {[%emt 00:00:03] [%clk 00:00:09]} Bg5 {[%emt 00:00:03]
[%clk 00:00:05]} 58. a6+ {[%emt 00:00:01] [%clk 00:00:10]} Kc7 {[%emt 00:00:01]
[%clk 00:00:05]} 59. Bg3+ {[%emt 00:00:02] [%clk 00:00:11]} Kd8 {[%clk
00:00:06]} 60. Bb5 {[%emt 00:00:03] [%clk 00:00:09]} Re7 {[%emt 00:00:05] [%clk
00:00:04]} 61. Rd6+ {[%emt 00:00:01] [%clk 00:00:10]} Kc8 {[%emt 00:00:02] [%clk
00:00:04]} 62. Bc6 {[%emt 00:00:01] [%clk 00:00:11]} Nb4 {[%emt 00:00:02] [%clk
00:00:04]} 63. Bb7+ {[%emt 00:00:01] [%clk 00:00:12]} Rxb7 {[%emt 00:00:01]
[%clk 00:00:05]} 64. axb7+ {[%emt 00:00:01] [%clk 00:00:13]} Kxb7 {[%clk
00:00:06]} 65. Rxd4 {[%emt 00:00:02] [%clk 00:00:13]} Nxc2 {[%emt 00:00:01]
[%clk 00:00:07]} 66. Rd7+ {[%clk 00:00:14]} Kc6 {[%emt 00:00:04] [%clk
00:00:06]} 67. Rxg7 {[%emt 00:00:02] [%clk 00:00:15]} Ne3+ {[%emt 00:00:01]
[%clk 00:00:06]} 68. Kf3 {[%clk 00:00:16]} a5 {[%emt 00:00:01] [%clk 00:00:07]}
69. Rxg5 {[%emt 00:00:01] [%clk 00:00:16]} 1-0

[Site "Europe Echecs"]

[Event "Championnat d'Europe de Blitz"]
[Date "2024.12.09"]
[White "Nevednichy, Vladislav"]
[Black "Kalezic, Blazo"]
[WhiteElo "2451"]
[BlackElo "2382"]
[Round "7.24"]
[Result "0-1"]
[TimeControl "180+2"]

1. e4 {[%emt 00:00:02] [%clk 00:03:02]} e6 {[%clk 00:03:03]} 2. Qe2 {[%emt
00:00:03] [%clk 00:03:02]} c5 {[%clk 00:03:04]} 3. Nf3 {[%emt 00:00:02] [%clk
00:03:02]} Nc6 {[%clk 00:03:05]} 4. g3 {[%emt 00:00:02] [%clk 00:03:03]} Nge7
{[%emt 00:00:10] [%clk 00:02:57]} 5. Bg2 {[%emt 00:00:02] [%clk 00:03:02]} d6
{[%emt 00:00:12] [%clk 00:02:47]} 6. O-O {[%emt 00:00:05] [%clk 00:02:58]} g6
{[%emt 00:00:03] [%clk 00:02:46]} 7. c3 {[%emt 00:00:04] [%clk 00:02:57]} Bg7
{[%emt 00:00:01] [%clk 00:02:47]} 8. Rd1 {[%emt 00:00:20] [%clk 00:02:39]} e5
{[%emt 00:00:02] [%clk 00:02:47]} 9. Na3 {[%emt 00:00:01] [%clk 00:02:40]} O-O
{[%emt 00:00:06] [%clk 00:02:43]} 10. Nc2 {[%emt 00:00:30]} f5 {[%clk 00:02:17]}
11. d3 {[%emt 00:00:01] [%clk 00:02:41]} h6 {[%emt 00:00:03] [%clk 00:02:17]}
12. b4 {[%emt 00:00:02] [%clk 00:02:41]} Kh7 {[%emt 00:00:07] [%clk 00:02:12]}
13. b5 {[%emt 00:00:55] [%clk 00:01:48]} Nb8 {[%emt 00:00:08] [%clk 00:02:04]}
14. Rb1 {[%emt 00:00:43] [%clk 00:01:08]} Nd7 {[%emt 00:00:07] [%clk 00:01:59]}
15. Ne3 {[%emt 00:00:12] [%clk 00:00:58]} f4 {[%emt 00:00:07] [%clk 00:01:55]}
16. Nc4 {[%emt 00:00:05] [%clk 00:00:55]} g5 {[%emt 00:00:27] [%clk 00:01:29]}
17. h3 {[%emt 00:00:08] [%clk 00:00:49]} Nb6 {[%emt 00:00:06] [%clk 00:01:25]}
18. d4 {[%emt 00:00:27] [%clk 00:00:24]} cxd4 {[%emt 00:00:06] [%clk 00:01:21]}
19. cxd4 {[%emt 00:00:03] [%clk 00:00:23]} Nxc4 {[%emt 00:00:04] [%clk
00:01:19]} 20. Qxc4 {[%emt 00:00:01] [%clk 00:00:24]} fxg3 {[%emt 00:00:03]
[%clk 00:01:18]} 21. fxg3 {[%emt 00:00:03] [%clk 00:00:24]} Bxh3 {[%emt
00:00:26] [%clk 00:00:53]} 22. dxe5 {[%emt 00:00:01] [%clk 00:00:25]} Qb6+
{[%emt 00:00:06] [%clk 00:00:49]} 23. Qd4 {[%emt 00:00:11] [%clk 00:00:16]} dxe5
{[%emt 00:00:08] [%clk 00:00:43]} 24. Qxb6 {[%emt 00:00:03] [%clk 00:00:15]}
axb6 {[%emt 00:00:02] [%clk 00:00:44]} 25. Rb2 {[%emt 00:00:02] [%clk 00:00:14]}
Bxg2 {[%emt 00:00:04] [%clk 00:00:42]} 26. Kxg2 {[%clk 00:00:15]} Rfd8 {[%emt
00:00:15] [%clk 00:00:29]} 27. Rbd2 {[%emt 00:00:04] [%clk 00:00:13]} Rxa2
{[%emt 00:00:03] [%clk 00:00:28]} 28. Kh3 {[%emt 00:00:08] [%clk 00:00:08]}
Rdxd2 {[%emt 00:00:03] [%clk 00:00:26]} 29. Bxd2 {[%emt 00:00:03] [%clk
00:00:08]} Ng8 {[%emt 00:00:07] [%clk 00:00:20]} 30. Bc3 {[%emt 00:00:03] [%clk
00:00:07]} Ra3 {[%emt 00:00:04] [%clk 00:00:19]} 31. Rc1 {[%emt 00:00:04] [%clk
00:00:04]} Nf6 {[%emt 00:00:04] [%clk 00:00:17]} 32. Kg2 {[%emt 00:00:02] [%clk
00:00:04]} Nxe4 {[%emt 00:00:04] [%clk 00:00:15]} 33. Bxe5 {[%emt 00:00:02]
[%clk 00:00:05]} g4 {[%emt 00:00:01] [%clk 00:00:16]} 34. Rc7 {[%emt 00:00:02]
[%clk 00:00:04]} gxf3+ {[%emt 00:00:03] [%clk 00:00:16]} 35. Kh3 {[%emt
00:00:01] [%clk 00:00:04]} Ng5+ {[%emt 00:00:04] [%clk 00:00:15]} 36. Kg4 {[%clk
00:00:05]} Ne6 {[%clk 00:00:16]} 37. Re7 {[%emt 00:00:01] [%clk 00:00:06]} f2
{[%emt 00:00:01] [%clk 00:00:17]} 38. Rf7 {[%emt 00:00:04] [%clk 00:00:04]} Kg8
{[%emt 00:00:03] [%clk 00:00:16]} 0-1

[Site "Europe Echecs"]

[Event "Championnat d'Europe de Blitz"]
[Date "2024.12.09"]
[White "Upleger, Martin"]
[Black "Gavrilescu, David"]
[WhiteElo "2297"]
[BlackElo "2549"]
[Round "7.25"]
[Result "0-1"]
[TimeControl "180+2"]

1. d4 {[%emt 00:00:02] [%clk 00:03:02]} d5 {[%clk 00:03:03]} 2. Nf3 {[%emt
00:00:04] [%clk 00:03:02]} Nf6 {[%clk 00:03:04]} 3. Bg5 {[%clk 00:03:03]} c5
{[%emt 00:00:03] [%clk 00:03:04]} 4. e3 {[%emt 00:00:02] [%clk 00:03:02]} Nc6
{[%emt 00:00:05] [%clk 00:03:01]} 5. c3 {[%emt 00:00:02] [%clk 00:03:02]} Qb6
{[%emt 00:00:07] [%clk 00:02:56]} 6. Qc1 {[%emt 00:00:23] [%clk 00:02:40]} Bf5
{[%emt 00:00:04] [%clk 00:02:54]} 7. Nbd2 {[%emt 00:00:14] [%clk 00:02:28]} Rc8
{[%emt 00:00:03] [%clk 00:02:54]} 8. Bxf6 {[%emt 00:00:18] [%clk 00:02:12]} gxf6
{[%emt 00:00:01] [%clk 00:02:54]} 9. dxc5 {[%emt 00:00:02] [%clk 00:02:13]} Qxc5
{[%emt 00:00:01] [%clk 00:02:55]} 10. Nb3 {[%emt 00:00:02] [%clk 00:02:13]} Qb6
{[%emt 00:00:02] [%clk 00:02:55]} 11. Qd2 {[%emt 00:00:03] [%clk 00:02:12]} e6
{[%emt 00:00:03] [%clk 00:02:54]} 12. h3 {[%emt 00:00:07] [%clk 00:02:07]} Bg7
{[%emt 00:00:11] [%clk 00:02:45]} 13. Bd3 {[%emt 00:00:16] [%clk 00:01:53]} Bg6
{[%emt 00:00:01] [%clk 00:02:45]} 14. O-O {[%emt 00:00:03] [%clk 00:01:52]} O-O
{[%emt 00:00:02] [%clk 00:02:45]} 15. Bxg6 {[%emt 00:00:16] [%clk 00:01:39]}
hxg6 {[%emt 00:00:02] [%clk 00:02:46]} 16. Nbd4 {[%emt 00:00:10] [%clk
00:01:31]} Na5 {[%emt 00:00:13] [%clk 00:02:34]} 17. Rab1 {[%emt 00:00:12] [%clk
00:01:21]} Nc4 {[%emt 00:00:04] [%clk 00:02:33]} 18. Qe2 {[%emt 00:00:06] [%clk
00:01:17]} f5 {[%clk 00:02:33]} 19. Nd2 {[%emt 00:00:09] [%clk 00:01:10]} Nd6
{[%emt 00:00:06] [%clk 00:02:29]} 20. Rfc1 {[%emt 00:00:12] [%clk 00:01:00]} Rc7
{[%emt 00:00:11] [%clk 00:02:20]} 21. h4 {[%emt 00:00:09] [%clk 00:00:54]} Bf6
{[%emt 00:00:20] [%clk 00:02:01]} 22. g3 {[%emt 00:00:04] [%clk 00:00:52]} Kg7
{[%emt 00:00:06] [%clk 00:01:57]} 23. Kg2 {[%clk 00:00:53]} Rh8 {[%emt 00:00:02]
[%clk 00:01:58]} 24. Rc2 {[%emt 00:00:17] [%clk 00:00:39]} e5 {[%emt 00:00:21]
[%clk 00:01:39]} 25. N4f3 {[%emt 00:00:02] [%clk 00:00:39]} Qc6 {[%emt 00:00:05]
[%clk 00:01:36]} 26. Rbc1 {[%emt 00:00:18] [%clk 00:00:22]} b5 {[%emt 00:00:02]
[%clk 00:01:36]} 27. Kg1 {[%emt 00:00:04] [%clk 00:00:20]} Qd7 {[%emt 00:00:17]
[%clk 00:01:22]} 28. Nf1 {[%emt 00:00:06] [%clk 00:00:15]} Ne4 {[%emt 00:00:07]
[%clk 00:01:16]} 29. N1d2 {[%emt 00:00:06]} Nc5 {[%clk 00:01:16]} 30. Rd1 {[%emt
00:00:03] [%clk 00:00:13]} e4 {[%emt 00:00:09] [%clk 00:01:09]} 31. Nd4 {[%emt
00:00:06] [%clk 00:00:09]} Nd3 {[%emt 00:00:01] [%clk 00:01:10]} 32. Nf1 {[%emt
00:00:03] [%clk 00:00:09]} b4 {[%emt 00:00:07] [%clk 00:01:05]} 33. cxb4 {[%emt
00:00:05] [%clk 00:00:05]} Bxd4 {[%emt 00:00:03] [%clk 00:01:05]} 34. exd4
{[%emt 00:00:01] [%clk 00:00:05]} Rxc2 {[%emt 00:00:03] [%clk 00:01:04]} 35.
Qxc2 {[%emt 00:00:01] [%clk 00:00:06]} f4 {[%emt 00:00:02] [%clk 00:01:04]} 36.
Rxd3 {[%emt 00:00:05] [%clk 00:00:03]} exd3 {[%emt 00:00:01] [%clk 00:01:05]}
37. Qxd3 {[%clk 00:00:05]} fxg3 {[%emt 00:00:03] [%clk 00:01:05]} 38. fxg3
{[%emt 00:00:01] [%clk 00:00:06]} Re8 {[%emt 00:00:24] [%clk 00:01:00]} 39. a3
{[%emt 00:00:02] [%clk 00:00:07]} Qg4 {[%emt 00:00:04] [%clk 00:00:57]} 40. Kf2
{[%emt 00:00:01] [%clk 00:00:08]} Re4 {[%emt 00:00:07] [%clk 00:00:52]} 41. Ne3
{[%emt 00:00:03] [%clk 00:00:07]} Qh3 {[%emt 00:00:13] [%clk 00:00:41]} 42. Ng2
{[%emt 00:00:03] [%clk 00:00:05]} Qf5+ {[%emt 00:00:02] [%clk 00:00:42]} 43. Kg1
{[%emt 00:00:02] [%clk 00:00:05]} Qf6 {[%emt 00:00:02] [%clk 00:00:42]} 44. Nf4
{[%emt 00:00:03] [%clk 00:00:04]} Rxd4 {[%emt 00:00:02] [%clk 00:00:41]} 45. Qe3
{[%emt 00:00:02] [%clk 00:00:05]} Rd1+ {[%emt 00:00:03] [%clk 00:00:40]} 46. Kg2
{[%emt 00:00:01] [%clk 00:00:06]} Qxb2+ {[%emt 00:00:02] [%clk 00:00:40]} 47.
Kh3 {[%emt 00:00:01] [%clk 00:00:07]} Rh1+ {[%emt 00:00:03] [%clk 00:00:39]} 48.
Kg4 {[%clk 00:00:08]} f5+ {[%emt 00:00:01] [%clk 00:00:39]} 49. Kf3 {[%emt
00:00:01] [%clk 00:00:09]} Rf1+ {[%emt 00:00:02] [%clk 00:00:40]} 0-1

[Site "Europe Echecs"]

[Event "Championnat d'Europe de Blitz"]
[Date "2024.12.09"]
[White "Reprintsev, Alexander"]
[Black "Samunenkov, Ihor"]
[WhiteElo "2230"]
[BlackElo "2543"]
[Round "7.26"]
[Result "0-1"]
[TimeControl "180+2"]

1. e4 {[%clk 00:03:03]} c6 {[%emt 00:00:02] [%clk 00:03:02]} 2. c4 {[%emt
00:00:08] [%clk 00:02:58]} d5 {[%emt 00:00:02] [%clk 00:03:02]} 3. exd5 {[%emt
00:00:01] [%clk 00:02:58]} cxd5 {[%emt 00:00:02] [%clk 00:03:02]} 4. cxd5 {[%emt
00:00:02] [%clk 00:02:59]} Nf6 {[%emt 00:00:02] [%clk 00:03:02]} 5. Nc3 {[%emt
00:00:01] [%clk 00:03:00]} Nxd5 {[%emt 00:00:04] [%clk 00:03:00]} 6. Nf3 {[%emt
00:00:02] [%clk 00:03:00]} Nc6 {[%emt 00:00:02] [%clk 00:03:00]} 7. Bc4 {[%emt
00:00:05] [%clk 00:02:57]} Nb6 {[%emt 00:00:13] [%clk 00:02:49]} 8. Bb5 {[%emt
00:00:03] [%clk 00:02:56]} e6 {[%emt 00:00:17] [%clk 00:02:34]} 9. O-O {[%emt
00:00:03] [%clk 00:02:55]} Bd6 {[%emt 00:00:13] [%clk 00:02:22]} 10. Ne4 {[%emt
00:00:07] [%clk 00:02:51]} O-O {[%emt 00:00:04] [%clk 00:02:21]} 11. d3 {[%emt
00:00:13] [%clk 00:02:39]} Ne7 {[%emt 00:00:15] [%clk 00:02:07]} 12. Bg5 {[%emt
00:00:07] [%clk 00:02:34]} Nbd5 {[%emt 00:00:03] [%clk 00:02:07]} 13. Rc1 {[%emt
00:00:07] [%clk 00:02:28]} h6 {[%emt 00:00:03] [%clk 00:02:06]} 14. Bh4 {[%emt
00:00:16] [%clk 00:02:14]} Bf4 {[%emt 00:00:04] [%clk 00:02:05]} 15. Rc5 {[%emt
00:00:24] [%clk 00:01:52]} b6 {[%emt 00:00:09] [%clk 00:01:58]} 16. Rc2 {[%emt
00:00:04] [%clk 00:01:51]} Bb7 {[%emt 00:00:03] [%clk 00:01:56]} 17. Bg3 {[%emt
00:00:05] [%clk 00:01:47]} Nf5 {[%emt 00:00:04] [%clk 00:01:54]} 18. Bxf4 {[%emt
00:00:06] [%clk 00:01:44]} Nxf4 {[%emt 00:00:02] [%clk 00:01:54]} 19. Qc1 {[%emt
00:00:02] [%clk 00:01:44]} Nxd3 {[%emt 00:00:09] [%clk 00:01:47]} 20. Bxd3
{[%emt 00:00:04] [%clk 00:01:42]} Qxd3 {[%emt 00:00:02] [%clk 00:01:47]} 21.
Ned2 {[%emt 00:00:46] [%clk 00:00:58]} Rac8 {[%emt 00:00:04] [%clk 00:01:45]}
22. Rc3 {[%emt 00:00:03] [%clk 00:00:56]} Rxc3 {[%emt 00:00:04] [%clk 00:01:44]}
23. Qxc3 {[%emt 00:00:01] [%clk 00:00:57]} Qxc3 {[%emt 00:00:03] [%clk
00:01:43]} 24. bxc3 {[%emt 00:00:01] [%clk 00:00:58]} Rc8 {[%emt 00:00:03] [%clk
00:01:41]} 25. Rc1 {[%emt 00:00:03] [%clk 00:00:58]} Nd6 {[%emt 00:00:16] [%clk
00:01:27]} 26. Nd4 {[%emt 00:00:05] [%clk 00:00:55]} e5 {[%emt 00:00:13] [%clk
00:01:16]} 27. N4b3 {[%emt 00:00:06] [%clk 00:00:51]} a5 {[%emt 00:00:05] [%clk
00:01:13]} 28. Nf1 {[%emt 00:00:24] [%clk 00:00:29]} f5 {[%emt 00:00:31] [%clk
00:00:44]} 29. f3 {[%emt 00:00:02] [%clk 00:00:29]} f4 {[%emt 00:00:13] [%clk
00:00:33]} 30. Nbd2 {[%emt 00:00:05] [%clk 00:00:26]} Ba6 {[%emt 00:00:06] [%clk
00:00:29]} 31. Kf2 {[%emt 00:00:03] [%clk 00:00:25]} Kf7 {[%emt 00:00:06] [%clk
00:00:25]} 32. g3 {[%emt 00:00:01] [%clk 00:00:26]} g5 {[%emt 00:00:04] [%clk
00:00:23]} 33. h4 {[%emt 00:00:02] [%clk 00:00:27]} fxg3+ {[%emt 00:00:11] [%clk
00:00:14]} 34. Nxg3 {[%emt 00:00:02] [%clk 00:00:26]} gxh4 {[%emt 00:00:02]
[%clk 00:00:14]} 35. Nge4 {[%clk 00:00:27]} Nf5 {[%emt 00:00:01] [%clk
00:00:15]} 36. c4 {[%emt 00:00:05] [%clk 00:00:24]} Bb7 {[%emt 00:00:04] [%clk
00:00:13]} 37. Rb1 {[%clk 00:00:25]} h3 {[%emt 00:00:11] [%clk 00:00:04]} 38.
Rxb6 {[%emt 00:00:04] [%clk 00:00:23]} Bc6 {[%clk 00:00:05]} 39. Rb1 {[%emt
00:00:02] [%clk 00:00:23]} Rg8 {[%emt 00:00:02] [%clk 00:00:05]} 40. Rg1 {[%emt
00:00:09] [%clk 00:00:15]} Rxg1 {[%emt 00:00:03] [%clk 00:00:05]} 41. Kxg1
{[%emt 00:00:01] [%clk 00:00:16]} Nd4 {[%emt 00:00:02] [%clk 00:00:05]} 42. Kf2
{[%emt 00:00:03] [%clk 00:00:14]} h2 {[%emt 00:00:02] [%clk 00:00:06]} 43. Ng3
{[%emt 00:00:01] [%clk 00:00:15]} h5 {[%emt 00:00:02] [%clk 00:00:06]} 44. Nh1
{[%emt 00:00:03] [%clk 00:00:14]} h4 {[%emt 00:00:01] [%clk 00:00:07]} 45. Kg2
{[%emt 00:00:02] [%clk 00:00:15]} Ke6 {[%emt 00:00:01] [%clk 00:00:08]} 46. a3
{[%emt 00:00:03] [%clk 00:00:14]} Kf5 {[%emt 00:00:02] [%clk 00:00:07]} 47. Nf2
{[%emt 00:00:02] [%clk 00:00:14]} Kf4 {[%emt 00:00:02] [%clk 00:00:08]} 48. Nh3+
{[%emt 00:00:02] [%clk 00:00:13]} Ke3 {[%emt 00:00:02] [%clk 00:00:08]} 49. Nf1+
{[%emt 00:00:02] [%clk 00:00:14]} Ke2 {[%emt 00:00:02] [%clk 00:00:08]} 50. Nxh2
{[%emt 00:00:02] [%clk 00:00:13]} Nxf3 {[%emt 00:00:03] [%clk 00:00:08]} 51.
Nxf3 {[%emt 00:00:03] [%clk 00:00:12]} Bxf3 {[%emt 00:00:01] [%clk 00:00:08]}
52. Kg1 {[%clk 00:00:14]} Bc6 {[%emt 00:00:06] [%clk 00:00:05]} 53. Ng5 {[%emt
00:00:04] [%clk 00:00:11]} e4 {[%emt 00:00:01] [%clk 00:00:06]} 54. Kg2 {[%emt
00:00:04] [%clk 00:00:09]} e3 {[%emt 00:00:02] [%clk 00:00:07]} 55. Kh3 {[%clk
00:00:10]} Kd2 {[%emt 00:00:02] [%clk 00:00:07]} 0-1

[Site "Europe Echecs"]